Cogmind - Beta 16.1 @@@ ROGUE MODE // 2026.04.26 @ 09:53:24 Player: kareds Result: Core destroyed Performance ------------- Evolutions (0) 0 Regions Visited (4) 800 Robots Destroyed (10) 50 Value Destroyed (259) 259 Prototype IDs (23) 460 Alien Tech Used (0) 0 Bonus (325) 325 TOTAL SCORE: 1894 Bonus ------- Follower Combat Kills 35 Aligned with FarCom 300 Friendly Fire -10 Cogmind --------- Core Integrity 0/250 Matter 245/300 Energy 100/100 System Corruption 25% Temperature Cool (25) Movement Core (100) Ox1 Location -9/Mines Parts ------- > --- POWER (1) -------- Makeshift Power Source > --- PROPULSION (2) --- Compact Wheel > --- UTILITY (2) ------ Visual Processing Unit > --- WEAPON (2) ------- (None) > --- INVENTORY (5) ---- Improved Heat Sink Small Storage Unit Medium Matter Pod (100) Seismic Detector Trap Reconfigurator Peak State ------------ > --- POWER ------------ Makeshift Power Source > --- PROPULSION ------- Wheel Compact Wheel > --- UTILITY ---------- Visual Processing Unit Trap Reconfigurator > --- WEAPON ----------- EM Pulse Gun Light Assault Rifle > --- INVENTORY -------- Ion Engine Improved Heat Sink Medium Matter Pod Improved Terrain Scanner Seismic Detector [Rating: 19] Favorites ----------- Power Makeshift Power Source Engine Makeshift Power Source Propulsion Compact Wheel Wheel Compact Wheel Utility Seismic Detector Device Seismic Detector Storage Small Storage Unit Processor Visual Processing Unit Weapon Light Assault Rifle Energy Gun EM Pulse Gun Ballistic Gun Light Assault Rifle Special Weapon Mining Laser Build | -11 -10 -10 -10 -9 ------- Run | Yrd Mat Min Exi Min Slots Evolved . | . . . . . Power . | . . . . . Propulsion . | . . . . . Utility . | . . . . . Weapon . | . . . . . Parts Attached 14 | 9 . 2 2 1 Power 2 | 1 . 1 . . Engine 2 | 1 . 1 . . Core . | . . . . . Reactor . | . . . . . Propulsion 2 | 2 . . . . Treads . | . . . . . Leg . | . . . . . Wheel 2 | 2 . . . . Hover . | . . . . . Flight . | . . . . . Utility 6 | 3 . 1 2 . Device 4 | 2 . . 2 . Storage 1 | 1 . . . . Processor 1 | . . 1 . . Hackware . | . . . . . Protection . | . . . . . Artifact . | . . . . . Weapon 4 | 3 . . . 1 Energy Gun 2 | 2 . . . . Energy Cannon . | . . . . . Ballistic Gun 1 | 1 . . . . Ballistic Cannon . | . . . . . Launcher . | . . . . . Special Weapon 1 | . . . . 1 Impact Weapon . | . . . . . Slashing Weapon . | . . . . . Piercing Weapon . | . . . . . Special Melee Weapon . | . . . . . Unidentified Prototypes . | . . . . . Parts Lost 4 | . . . . 4 Power . | . . . . . Propulsion 1 | . . . . 1 Utility 1 | . . . . 1 Weapon 2 | . . . . 2 Highest Loss Streak 4 | . . . . 4 To Critical Strikes . | . . . . . Average Backups 4 | 1 3 4 5 5 Power . | . . . . . Propulsion . | 1 1 . . . Utility 4 | . 2 4 4 5 Weapon . | . . . . . Tool/Special . | . . . . . Unused Backups 7 | 2 2 1 . 2 Power . | . . . . . Propulsion 4 | 2 2 . . . Utility 3 | . . 1 . 2 Weapon . | . . . . . Tool/Special . | . . . . . Average Slot Usage (%) 96 | . 100 100 100 87 Engine 14 | . 14 14 14 14 Wheel 27 | . 28 28 28 25 Device 18 | . 28 24 12 11 Processor 8 | . . 3 14 14 Energy Gun 10 | . 14 14 14 3 Ballistic Gun 13 | . 14 14 14 11 Special Weapon 1 | . . . . 6 Peak Build Rating 19 | 9 9 11 19 19 Average Rating 10 | 6 9 9 13 11 On Entrance 9 | . 9 9 11 19 Avg Prop Armor Cover (%) . | . . . . . Naked Turns . | . . . . . Heaviest Build 14 | 14 10 10 12 8 Greatest Support 26 | 26 26 26 26 26 Greatest Overweight (x) . | . . . . . Average Overweight (x) . | . . . . . Largest Inventory Capacity 8 | 8 5 5 8 5 Average Capacity 5 | 7 5 5 5 5 Most Carried 5 | 3 5 5 5 5 Average Carried 4 | 1 4 4 4 4 Final Capacity 5 | 5 5 5 5 5 Final Carried 5 | 3 4 5 5 5 Class Distribution -------------------- 86% | Mutant 8% | Scavenger-Skirmisher 5% | Scavenger-Mutant Dominant Class ---------------- Mutant | -10/Materials Mutant | -10/Mines Mutant | -10/Exiles Mutant | -9/Mines Resources | -11 -10 -10 -10 -9 ----------- Run | Yrd Mat Min Exi Min Matter Collected 472 | 284 19 139 . 30 Remotely . | . . . . . Salvage Created 375 | 51 97 215 . 12 Parts 32 | 6 10 10 . 6 Haulers Intercepted . | . . . . . Recyclers Shooed . | . . . . . Parts Field Recycled . | . . . . . Retrieved Matter . | . . . . . Parts Self-Destructed . | . . . . . Prevented . | . . . . . Parts Restored . | . . . . . Kills | -11 -10 -10 -10 -9 ------- Run | Yrd Mat Min Exi Min Combat Hostiles Destroyed 5 | . 1 4 . . Guns 5 | . 1 4 . . Classes Destroyed 4 | 1 3 . . . Tunneler 3 | 2 . . . 1 Operator 1 | . 1 . . . Watcher 1 | . 1 . . . Grunt 5 | . 1 4 . . Best Kill Streak 2 | 2 2 2 . 1 Combat Bots Only 2 | . 1 2 . . Max Kills in Single Turn 1 | 1 1 1 . 1 Gunslinging . | . . . . . Exploded . | . . . . . Melee . | . . . . . Uniques/NPCs Destroyed . | . . . . . Combat | -11 -10 -10 -10 -9 -------- Run | Yrd Mat Min Exi Min Hostile Shots Fired 13 | . 1 12 . . Missed 3 | . . 3 . . Hits 10 | . 1 9 . . Projectile 10 | . 1 9 . . Critical Strikes 1 | . . 1 . . Damage Taken 593 | . 10 139 . 444 Core 257 | . . 46 . 211 Absorbed by Shields . | . . . . . Core Remaining (%) 100 | 100 . . . . Volleys Fired 46 | 5 15 13 . 13 Largest 2 | 2 2 2 . 1 Hottest 100 | 80 60 60 . 100 Shots Fired 69 | 6 24 26 . 13 Gun 64 | 6 24 26 . 8 Cannon . | . . . . . Launcher . | . . . . . Special 5 | . . . . 5 Kinetic 40 | 4 15 13 . 8 Thermal 5 | . . . . 5 Explosive . | . . . . . Electromagnetic 24 | 2 9 13 . . Robot Hit Streak 12 | 1 5 12 . 11 Robot Miss Streak 3 | 3 2 2 . 3 Penetration Max . | . . . . . Secondary Targets . | . . . . . Shots Hit Robots 40 | 2 13 21 . 4 Core Hits 21 | 2 7 10 . 2 Critical Kills . | . . . . . Critical Parts Destroyed . | . . . . . Critical Strikes . | . . . . . Melee Attacks . | . . . . . Impact . | . . . . . Slashing . | . . . . . Piercing . | . . . . . Sneak Attacks . | . . . . . Combat Hostiles . | . . . . . Follow-up Attacks . | . . . . . Damage Inflicted 479 | 20 151 241 . 67 Guns 434 | 20 151 232 . 31 Cannons . | . . . . . Explosions . | . . . . . Melee . | . . . . . Ramming 45 | . . 9 . 36 Kinetic 186 | 20 57 78 . 31 Thermal . | . . . . . Explosive . | . . . . . Electromagnetic 248 | . 94 154 . . Impact . | . . . . . Slashing . | . . . . . Piercing . | . . . . . Highest Corruption 25 | . . . . 25 Average Corruption 12 | . . . . 12 Corruption Purged . | . . . . . Corruption Blocked . | . . . . . Effects 5 | . . . . 5 Message Errors 1 | . . . . 1 Matter Fused 1 | . . . . 1 Heat Flow Errors 1 | . . . . 1 Energy Discharges 1 | . . . . 1 Data Loss (major) 1 | . . . . 1 Overload Shots . | . . . . . Overflow Damage . | . . . . . Projectiles . | . . . . . Explosions . | . . . . . Melee . | . . . . . Knockbacks . | . . . . . Impact . | . . . . . Kinetic . | . . . . . Secondary . | . . . . . Self-Inflicted Damage 40 | . . 4 . 36 Shots . | . . . . . Rammed 1 | . . 1 . . Targets Rammed 1 | . . 1 . . Kicked . | . . . . . Crushed . | . . . . . Highest Temperature 105 | 18 40 100 . 105 Average Temperature 34 | 12 20 42 . 36 Received Heat Transfer 102 | . 6 96 . . Siege Activations . | . . . . . Martial Activations . | . . . . . Shielding Activations . | . . . . . Robots Disrupted . | . . . . . Combat Hostiles . | . . . . . Robots Corrupted . | . . . . . Combat Hostiles . | . . . . . Parts Fried . | . . . . . Impact Corruptions . | . . . . . Robots Melted . | . . . . . Combat Hostiles . | . . . . . Parts Melted . | . . . . . Heat Transferred . | . . . . . Parts Sabotaged . | . . . . . Parts Stolen . | . . . . . Parts Stripped . | . . . . . Power Chain Reactions . | . . . . . Alert | -11 -10 -10 -10 -9 ------- Run | Yrd Mat Min Exi Min Maximum Alert Level . | . . . . . Low Security (%) 100 | 100 100 100 . 100 Level 1 . | . . . . . Level 2 . | . . . . . Level 3 . | . . . . . Level 4 . | . . . . . Level 5 . | . . . . . High Security . | . . . . . Max Security . | . . . . . Peak Influence 57 | 5 20 57 . 6 Initial . | . . . . . Average 5 | . 7 9 . . Influence Increases 209 | 10 40 151 . 8 Destroy 0b10 Robot/C 120 | . 20 100 . . Destroy 0b10 Robot/NC 25 | 10 10 . . 5 Destroy Leader 32 | . 2 30 . . Allied During Kill 4 | . . 4 . . Successful Hack 8 | . 8 . . . Disable Machine 15 | . . 15 . . Destroy Structure 5 | . . 2 . 3 Influence Decreases 209 | 10 40 126 25 8 Entered New Map 25 | . . . 25 . Time Decay 164 | 10 40 106 . 8 Lost Ally 20 | . . 20 . . Squads Dispatched 2 | . 2 . . . Investigation . | . . . . . Extermination . | . . . . . Reinforcement 2 | . 2 . . . Assault . | . . . . . Garrison . | . . . . . Intercept . | . . . . . Searches Triggered . | . . . . . Construction Impeded . | . . . . . Haulers Reinforced . | . . . . . Active Scanning Responses . | . . . . . Cargo Convoy Interrupts . | . . . . . Stealth | -11 -10 -10 -10 -9 --------- Run | Yrd Mat Min Exi Min Distress Signals 1 | . 1 . . . Communications Jammed . | . . . . . Distress Signals . | . . . . . Times Spotted 10 | . 6 4 . . Peak Tracking Total 2 | . 2 2 . . Tactical Retreats . | . . . . . Traps | -11 -10 -10 -10 -9 ------- Run | Yrd Mat Min Exi Min Traps Triggered . | . . . . . Indirectly . | . . . . . Trap Hack Attempts . | . . . . . Triggered . | . . . . . Disarmed . | . . . . . Reprogrammed . | . . . . . Reused . | . . . . . Traps Extracted . | . . . . . Installed . | . . . . . Triggered . | . . . . . Machines | -11 -10 -10 -10 -9 ---------- Run | Yrd Mat Min Exi Min Machines Disabled 1 | . . 1 . . Max in Single Turn . | . . . . . Machines Repaired . | . . . . . Machines Dismantled . | . . . . . Machines Sabotaged . | . . . . . Overloaded Fab Kills . | . . . . . Hacking | -11 -10 -10 -10 -9 --------- Run | Yrd Mat Min Exi Min Machines Accessed 2 | . 1 . 1 . Terminals 1 | . 1 . . . Fabricators . | . . . . . Repair Stations . | . . . . . Recycling Units . | . . . . . Scanalyzers . | . . . . . Garrison Access . | . . . . . Total Hacks 3 | . 2 . 1 . Successful 2 | . 1 . 1 . Failed 1 | . 1 . . . Catastrophic . | . . . . . Database Lockouts . | . . . . . Manual 3 | . 2 . 1 . Terminals 2 | . 2 . . . Fabricators . | . . . . . Repair Stations . | . . . . . Recycling Units . | . . . . . Scanalyzers . | . . . . . Garrison Access . | . . . . . Terminal Hacks 2 | . 1 . 1 . Branch Access Points 1 | . 1 . . . Proto ID Catalog 1 | . . . 1 . Fabricator Hacks . | . . . . . Repair Station Hacks . | . . . . . Recycling Unit Hacks . | . . . . . Scanalyzer . | . . . . . Garrison Access Hacks . | . . . . . Unauthorized Hacks . | . . . . . Terminals . | . . . . . Fabricators . | . . . . . Repair Stations . | . . . . . Recycling Units . | . . . . . Scanalyzers . | . . . . . Garrison Access . | . . . . . Data Cores Recovered . | . . . . . Used . | . . . . . Hacking Detections 1 | . 1 . . . Full Trace Events . | . . . . . Feedback Events . | . . . . . Feedback Blocked . | . . . . . Robot Schematics Acquired . | . . . . . Robots Built . | . . . . . Authchips . | . . . . . Time . | . . . . . Total Robot Build Rating . | . . . . . Part Schematics Acquired . | . . . . . Parts Built . | . . . . . Authchips . | . . . . . Time . | . . . . . Total Part Build Rating . | . . . . . Part Studies Acquired . | . . . . . Parts Repaired . | . . . . . Time . | . . . . . Parts Recycled . | . . . . . Recycled Matter . | . . . . . Retrieved Matter . | . . . . . Retrieved Components . | . . . . . Parts Scanalyzed . | . . . . . Part Schematics Acquired . | . . . . . Parts Damaged . | . . . . . Bothacking | -11 -10 -10 -10 -9 ------------ Run | Yrd Mat Min Exi Min Used RIF Installer . | . . . . . Robots Hacked . | . . . . . Non-combat . | . . . . . Combat . | . . . . . Robot Hacks Applied . | . . . . . Relay Couplers Released . | . . . . . Fabnet Peak Effective % . | . . . . . Robots Rewired . | . . . . . Allies Hacked . | . . . . . Hacks Repelled . | . . . . . Allies | -11 -10 -10 -10 -9 -------- Run | Yrd Mat Min Exi Min Total Allies 2 | . . 2 . . Largest Group 2 | . . 2 . . Highest-Rated Group 41 | . . 41 . . Highest-Rated Ally 31 | . . 31 . . Total Orders . | . . . . . Ally Attacks 2 | . . 2 . . Total Damage 174 | . . 174 . . Kills 2 | . . 2 . . Allies Corrupted . | . . . . . Allies Melted . | . . . . . Intel | -11 -10 -10 -10 -9 ------- Run | Yrd Mat Min Exi Min Active Infowar (turns) 1747 | 24 139 704 391 489 Optics 1052 | . . 172 391 489 Terrain 836 | 21 139 532 . 144 Seismic 1347 | 24 139 704 230 250 Robot Analysis Total . | . . . . . Derelict Logs Recovered 2 | . . 1 . 1 Drone Launches . | . . . . . Drone Recoveries . | . . . . . Exploration | -11 -10 -10 -10 -9 ------------- Run | Yrd Mat Min Exi Min Turns Passed 1851 | 119 139 704 391 498 Spaces Moved 1137 | 101 97 390 427 122 Core 3 | 3 . . . . Treads . | . . . . . Legs . | . . . . . Wheels 1134 | 98 97 390 427 122 Hover . | . . . . . Flight . | . . . . . Fastest Speed 50 | 50 90 90 90 90 Average Speed 89 | 88 90 90 90 90 Slowest Speed 90 | 90 90 90 90 90 Overloaded Moves . | . . . . . Propulsion Burnouts . | . . . . . Robots Hopped . | . . . . . Potential Cave-ins . | . . . . . Cave-ins Triggered 2 | . . . . 2 Exploration Rate (%) 39 | 5 26 57 91 16 Regions Visited 4 Branch Regions 3 Pre-discovered Areas . | . . . . . Known Exits Taken 1 | . 1 . . . Unknown Exits Taken 3 | 1 . 1 1 . Scrap Searched 2 | . . 1 . 1 Spaces Dug 5 | . . . . 5 Terrain Destroyed 5 | . . . . 5 Melee . | . . . . . Projectile 5 | . . . . 5 AOE . | . . . . . Terrain Rammed 12 | . . . . 12 Walls Destroyed . | . . . . . Machines Disabled . | . . . . . Actions | -11 -10 -10 -10 -9 --------- Run | Yrd Mat Min Exi Min Total 1889 | 122 128 718 433 488 Wait 654 | . 12 311 . 331 Move 1133 | 100 96 389 426 122 Hop . | . . . . . Pick Up 12 | 4 3 1 2 2 Fast Attach 10 | 9 . . . 1 Attach 3 | . . . 1 2 Detach 1 | 1 . . . . Swap 7 | . . 2 2 3 Drop 11 | 3 2 1 2 3 Fire 46 | 5 15 13 . 13 Melee . | . . . . . Ram 12 | . . 1 . 11 Kick . | . . . . . Crush . | . . . . . Escape Stasis . | . . . . . Rewire . | . . . . . Trap . | . . . . . Miscellaneous . | . . . . . Route ------- -11/Scrapyard -10/Materials (discovered 2 exits: *Min x2) -10/Mines (discovered 2 exits: [*Mat] / *Exi) -10/Exiles (discovered 2 exits: [*Min x2]) -9/Mines History --------- Turn | Location | Event 7 | -11/Scrapyard | Discovered new exit (range 15) 120 | -11/Scrapyard | Entered Materials 181 | -10/Materials | Identified exit to Mines 259 | -10/Materials | Entered Mines 311 | -10/Mines | Build established: Mutant 716 | -10/Mines | Discovered new exit (range 15) 958 | -10/Mines | Deemed a non-threat by the Exiles lab entrance 958 | -10/Mines | Discovered new exit (range 5) 963 | -10/Mines | Entered Exiles 975 | -10/Exiles | Discovered new exit (range 17) 985 | -10/Exiles | Met 8R-AWN 1000 | -10/Exiles | Met EX-HEX 1043 | -10/Exiles | Met EX-DEC 1065 | -10/Exiles | Visited The Gauntlet 1178 | -10/Exiles | Met EX-BIN 1192 | -10/Exiles | Aligned with FarCom system 1193 | -10/Exiles | Given EX-Vault access code 1220 | -10/Exiles | Opened EX-Vault 1228 | -10/Exiles | Found Supersonic Drone Bay 1230 | -10/Exiles | Found Trap Reconfigurator 1259 | -10/Exiles | Warned to stay clear of 0b10 Research branches 1315 | -10/Exiles | Discovered new exit (range 14) 1354 | -10/Exiles | Left Exiles lab with Trap Reconfigurator 1354 | -10/Exiles | Entered Mines 1355 | -9/Mines | Assembled infested the area 1470 | -9/Mines | Learned Materials interactive machine intel 1755 | -9/Mines | Crushed by falling debris 1755 | -9/Mines | Core integrity fell below 50% 1759 | -9/Mines | Crushed by falling debris 1759 | -9/Mines | System corruption reached 10% 1790 | -9/Mines | Lost 4 parts (1n1u2w) 1849 | -9/Mines | Core integrity fell below 20% 1852 | -9/Mines | Core destroyed Last Messages --------------- 01846_ Destabilizing: System corrupted (+1). 01847_ Slammed into Earth. 01847_ Mak. Power Source broken. 01847_ Destabilizing: Short circuit. 01848_ System corrupted: Heat flow error (+125). 01848_ Slammed into Earth. 01848_ Destabilizing: Core damaged (-7). 01848_ Destabilizing: System corrupted (+2). 01849_ Slammed into Earth. 01849_ Visual Processing Unit broken. 01849_ Destabilizing: Short circuit. 01850_ Slammed into Earth. 01850_ Destabilizing: System corrupted (+2). 01850_ Destabilizing: Core damaged (-12). 01851_ Slammed into Earth. 01851_ Destabilizing: System corrupted (+1). 01851_ Destabilizing: Core damaged (-7). 01852_ Slammed into Earth. 01852_ Destabilizing: Core damaged (-10). 01852_ Destabilizing: Core damaged (-12). Map ----- +----------------------------------------------------+ | ???????????????????????????????????????????????? | | ???????????????????????????????????????????????? | | ???????????????????????????????????????????????? | | ???????????????????????????????????????????????? | | ???????????????????????????????????????????????? | | ???????????????????????????????????????????????? | | ???????????????????????????????????????????????? | | ???????????????????????????????????????????????? | | ???????????????????????????????????????????????? | | ???????????????????????????????????????????????? | | ?????????????????##????????????????????????????? | | ????????????????? #????????????????????????????? | | ??????????? ????? ?????? ?????????????????????? | | ???????????????? ??? ?? ?#???????????????????? | | ???????????????? ??? ????#?? ????????????????? | | ??????????????## ?#???? ??????????????????????? | | ???????????### ???????? ??? ?????????????????? | | ???????#??## ????? ?????????????#???????????? | | ??????????# ???? ??????? ??????????????????? | | ??????????# ??###??????? ?? ????? ??????????? | | ??????????# ??# ????????? ?????????????????? | | ?????????## #?## #??????? ??? ???????????????? | | ??????????# ##?# #???????????#???????????????? | | ?????????## ### #???? ?????#????#???????????? | | ?????????# ## ######??????????????????????? | | ?????????# ##!#"##@####??? ???????????????? | | ?????????## =%! ##### #? ?????????????????? | | ?????????### =[* ########? ?????????????????? | | ??????#????# ##### ###??????????#???????????? | | ???????????# #???### "#?#?? ??????????????????? | | ??????????## ###?#?# ###???#????#?????????????? | | ?????????## ##??# #?#??#???????????????????? | | ?????????# #### #???????#???#????????????? | | ?????????# #????????????????????????? | | ????????## ###### ##???????????????????????? | | ???????## ##???## #????????????????????????? | | ??????## #?????# #???#????????????????????? | | ??????# ##?????# #???#????????????????????? | | ??????# ##?????# #????#?#?????????????????? | | ??????## ##????# #?#??????????????????????? | | ???????## ###### #????????????????????????? | | ???????## #???# #????????????????????????? | | ??????## #???# ##???????????????????????? | | ?????## ##???# #????????????????????????? | | ?????# #???## #????????????????????????? | | ????# ##??## ##???????????????????????? | | ????# ### ##?## ##??????????????????????? | | ????## #?# #?# #??????????????????????? | | ?????###??# ##?# #??????????????????????? | | ?????????## ###??# %#??????????????????????? | +----------------------------------------------------+ Best States ------------- Heat Dissipation 25 Energy Generation 15 Energy Capacity 250 Matter Stores 300 Matter Capacity 300 Sight Range 18 Terrain Scan Range 16 Terrain Scan Density 10 Evasion (%) 42 Item Schematics ----------------- None Robot Schematics ------------------ None Fabricated ------------ Nothing Repaired ---------- Nothing Studied --------- None Alien Tech Used ----------------- None Achievements -------------- None Challenges ------------ None Game ------ Seed WeaponMomentumLaser Manual? 0 Play Time 00:17:25 Cumulative 17.1 hours Start 2026.04.26 @ 09:36:25 End 2026.04.26 @ 09:53:24 Sessions 1 Manual Loads 0 Difficulty Rogue Special Mode None Game No. 24 Rogue 8 Adventurer 16 Explorer 0 Win Type - Total 0 Types 0/0/0/0/0/0/0/0/0/0 Lore% 28 Gallery% 24 Achievement% 22 Wizard Run 0 Options --------- Layout 1 ASCII 0 Keyboard 0 Movement Mouse Keybinds 0 Fullscreen 1 Font 24/Smallcaps Map View 50x35 Zoom Use 0% Tactical HUD 1 Map Filters NONE Filters NONE Steam 1 RUN: b51a4e32-106c-4f98-aa88-2afb6df0d92f